bitfinex-derivatives/quotes_BNBF0:USTF0_20250424
["timestamp","ask_amount","ask_price","bid_price","bid_amount"]
[1745467234863,0.28783048,605.58,604.29,0.57997691]
[1745467235063,0.28783048,605.58,604.04,1.189]
[1745467235262,2.13384984,606.41,604.04,1.189]
[1745467235263,1.25418113,605.41,604.05,0.88385202]
[1745467235463,1.25418113,605.41,604.06,0.88385202]
[1745467235659,1.25418113,605.41,604.07,0.57995666]
[1745467235964,1.25418113,605.41,604.08,0.57995666]
[1745467236266,1.25418113,605.41,604.09,0.57995666]
[1745467236564,1.25418113,605.41,604.1,0.57995666]
[1745467236759,1.25418113,605.41,604.11,0.57995666]
[1745467236964,1.25418113,605.41,604.12,0.57995666]
[1745467237163,1.25418113,605.41,604.13,0.57995666]
[1745467237364,1.25418113,605.41,604.14,0.57916139]
[1745467237559,1.25418113,605.41,604.15,0.57916139]
[1745467237761,0.28784,605.5,604.16,0.57916139]
[1745467237964,0.28784,605.5,604.17,0.57916139]
[1745467238166,1.25418113,605.81,604.18,0.57916139]
[1745467238361,1.25418113,605.81,604.19,0.57916139]
[1745467238565,1.25418113,605.81,604.2,0.57916139]
[1745467238764,1.25418113,605.81,604.21,0.57916139]
[1745467238962,1.25418113,605.81,604.22,0.57916139]
[1745467239166,1.25418113,605.81,604.23,0.57916139]
[1745467239366,1.25418113,605.81,604.24,0.56392572]
[1745467239566,0.2877674,605.8,603.98,1.065]
[1745467241970,0.2877674,605.8,603.99,0.30390564]
[1745467243772,0.2877674,605.8,603.87,0.2877674]
[1745467243971,0.2877674,605.8,603.88,0.30392282]
[1745467244171,1.25418113,606.2,603.88,0.30392282]
[1745467244371,1.25418113,606.2,603.75,0.30392282]
[1745467244572,1.25418113,606.2,603.76,0.30392282]
[1745467244766,1.25418113,606.2,603.75,0.30392282]
[1745467244969,1.25418113,606.2,603.76,0.30392728]
[1745467245170,1.25418113,606.2,603.77,0.30392728]
[1745467245366,1.25418113,606.2,603.74,1.645]
[1745467245574,0.28783048,606.19,603.74,1.645]
[1745467246269,1.25418113,605.81,603.74,1.645]
[1745467247368,1.25418113,605.81,603.75,0.30400564]
[1745467247674,1.25418113,605.81,603.76,1.094]
[1745467247874,1.25418113,605.81,603.77,0.30400564]
[1745467248074,1.25418113,605.81,603.76,1.094]
[1745467248275,0.28786024,605.8,603.76,1.094]
[1745467248777,0.28786024,605.8,603.77,0.30398513]
[1745467250274,1.25418113,605.9,603.77,0.30398513]
[1745467251276,1.25418113,605.9,603.78,0.57783365]
[1745467251471,0.28784952,605.89,603.79,0.88181878]
[1745467251674,0.28784952,605.89,603.8,0.57783365]
[1745467251875,0.28784952,605.89,603.81,0.57783365]
[1745467252171,0.28784952,605.89,603.82,0.57783365]
[1745467252373,0.28784952,605.89,603.83,0.57783365]
[1745467252572,1.25418113,605.87,603.84,0.57783365]
[1745467252776,1.25418113,605.87,603.85,0.57786731]
[1745467253072,1.25418113,605.87,603.86,0.57786731]
[1745467253271,1.25418113,605.87,603.87,0.88183422]
[1745467253476,1.25418113,605.87,603.88,0.57786731]
[1745467253671,1.25418113,605.87,603.89,0.57786731]
[1745467253978,1.25418113,605.87,603.9,0.88184553]
[1745467254176,1.25418113,605.87,603.91,0.57786731]
[1745467254371,0.28783762,605.86,603.92,0.57786731]
[1745467254571,0.28783762,605.86,603.93,0.8818479]
[1745467254778,0.28783762,605.86,603.94,0.8818479]
[1745467254978,0.28783762,605.86,603.95,0.8818479]
[1745467255180,1.25418113,605.6,603.96,0.8818479]
[1745467255479,1.25418113,605.6,603.97,0.8818479]
[1745467255677,1.25418113,605.6,603.98,0.8818479]
[1745467255872,1.25418113,605.6,603.76,1.38183643]
[1745467255873,1.25418113,605.6,603.99,0.88184572]
[1745467256074,1.25418113,605.6,604.0,0.57786731]
[1745467256273,1.25418113,605.6,604.01,0.57786731]
[1745467256474,1.25418113,605.6,604.02,0.57786731]
[1745467256780,1.25418113,605.6,604.03,0.57803197]
[1745467256974,1.25418113,605.6,604.04,0.57803197]
[1745467257172,1.25418113,605.6,603.76,1.094]
[1745467257173,1.25418113,605.6,604.05,0.57803197]
[1745467257375,1.25418113,605.6,604.06,0.57803197]
[1745467257683,1.25418113,605.44,604.07,0.57803197]
[1745467257981,1.25418113,605.44,603.76,2.327]
[1745467258179,1.25418113,605.44,603.77,0.57818308]
[1745467258378,1.25418113,605.44,603.78,0.57822151]
[1745467258679,1.25418113,605.44,603.79,0.57822151]
[1745467258879,1.25418113,605.44,603.8,0.57822151]
[1745467259080,1.25418113,605.44,603.81,0.57822151]
[1745467259378,1.25418113,605.44,603.82,0.57827618]
[1745467259575,1.25418113,605.44,603.83,0.57827618]
[1745467259780,1.25418113,605.44,603.84,0.57827618]
[1745467259980,1.25418113,605.44,603.85,0.57827618]
[1745467260180,1.25418113,605.44,603.86,0.57827618]
[1745467260380,1.25418113,605.44,603.87,0.57827618]
[1745467260585,0.28785191,605.59,603.88,0.57827618]
[1745467260774,0.28785191,605.59,603.89,0.57827618]
[1745467260977,0.28785191,605.59,603.9,0.57825951]
[1745467261179,0.28785191,605.59,603.91,0.57825951]
[1745467261383,0.28785191,605.59,603.92,0.57825951]
[1745467261682,0.28785191,605.59,603.93,0.57825951]
[1745467261882,0.28785191,605.59,603.94,0.57825951]
[1745467262182,1.25418113,605.79,603.95,0.57825951]
[1745467262381,1.25418113,605.79,603.96,0.57825951]
[1745467262582,0.28788643,605.58,603.97,0.57825951]
[1745467262883,1.25418113,605.59,603.98,0.57825951]
[1745467263483,0.28790311,605.58,603.98,0.57825951]
[1745467265188,1.25418113,605.59,603.98,0.57825951]
[1745467265386,2.13384984,606.29,603.98,0.57825951]
[1745467265387,1.25418113,605.74,603.98,0.57825951]
[1745467266489,0.28785429,605.73,603.98,0.57825951]
[1745467268187,1.25418113,606.02,603.98,0.57825951]
[1745467269387,0.28782096,606.01,603.98,0.57825951]
[1745467270392,0.28782096,606.01,603.99,0.57825951]
[1745467270593,1.25418113,605.72,604.0,0.57825951]
[1745467270796,1.25418113,605.72,604.01,0.57825951]
[1745467271091,1.25418113,605.72,604.02,0.57825951]
[1745467271291,1.25418113,605.72,604.03,0.57825951]
[1745467271492,1.25418113,605.72,604.04,0.57825951]
[1745467271787,1.25418113,605.72,604.05,0.57825951]
[1745467271988,1.25418113,605.72,604.06,0.57825951]
[1745467272187,1.25418113,605.72,604.07,0.57825951]
[1745467272389,0.28783167,605.71,604.08,0.57825951]
[1745467272592,0.28783167,605.71,604.09,0.57825951]
[1745467272792,0.28783167,605.71,604.1,0.57825951]
[1745467272994,0.28783167,605.71,604.11,0.57825951]
[1745467273190,0.28783167,605.71,604.12,0.57825951]
[1745467273487,0.28783167,605.71,604.13,0.57825951]
[1745467273690,0.28783167,605.71,604.14,0.57825951]
[1745467273892,0.28783167,605.71,604.15,0.57825951]
[1745467274191,1.25418113,605.9,604.16,0.57825951]
[1745467274386,1.25418113,605.9,604.17,0.57825951]
[1745467274591,1.25418113,605.9,604.18,0.57825951]
[1745467274893,1.25418113,605.9,604.19,0.57825951]
[1745467275093,1.25418113,605.9,604.2,0.57826022]
[1745467275290,0.28776027,605.89,604.21,0.57826022]
[1745467275487,1.25418113,605.79,604.22,0.57826022]
[1745467275690,1.25418113,605.79,604.23,0.57826022]
[1745467275891,1.25418113,605.79,604.24,0.57826022]
[1745467276091,1.25418113,605.79,604.25,0.57826022]
[1745467276391,1.25418113,605.79,604.26,0.57826022]
[1745467276587,1.25418113,605.79,604.27,0.57826022]
[1745467276788,1.25418113,605.79,604.28,0.57826022]
[1745467276991,1.25418113,605.79,603.97,1.691]
[1745467277287,1.25418113,605.79,603.98,0.57821956]
[1745467277487,1.25418113,605.79,603.99,0.57821956]
[1745467277688,1.25418113,605.79,604.0,0.57821956]
[1745467277888,1.25418113,605.79,604.01,0.57821956]
[1745467278188,1.25418113,605.79,603.97,1.691]
[1745467278189,1.25418113,605.79,604.02,0.57821956]
[1745467278388,1.25418113,605.79,604.03,0.57821956]
[1745467278590,1.25418113,605.79,604.04,0.57821956]
[1745467278791,0.28776027,605.89,604.05,0.88212073]
[1745467278994,0.28776027,605.89,604.06,0.57821956]
[1745467279195,0.28776027,605.89,604.07,0.57821956]
[1745467279492,0.28776027,605.89,604.08,0.57821956]
[1745467279694,0.28776027,605.89,604.09,0.57821956]
[1745467279890,0.28776027,605.89,604.1,0.57821956]
[1745467280092,1.25418113,605.98,604.11,0.57821956]
[1745467280292,1.25418113,605.98,604.12,0.57821956]
[1745467280591,0.28776384,605.88,604.13,0.57821956]
[1745467280791,1.25418113,605.98,604.14,0.57821956]
[1745467280987,1.25418113,605.98,604.15,0.57821956]
[1745467281192,1.25418113,605.98,604.16,0.57821956]
[1745467281489,1.25418113,605.75,604.17,0.57821956]
[1745467281693,1.25418113,605.75,604.18,0.57821956]
[1745467281889,1.25418113,605.75,604.19,0.57821956]
[1745467282093,1.25418113,605.75,604.2,0.57821956]
[1745467282292,1.25418113,605.75,604.21,0.57801267]
[1745467282489,1.25418113,605.75,604.22,0.57801267]
[1745467282793,1.25418113,605.75,604.23,0.57801267]
[1745467282993,1.25418113,605.75,604.24,0.57801267]
[1745467283192,1.25418113,605.75,604.25,0.57801267]
[1745467283391,1.25418113,605.94,604.26,0.57801267]
[1745467283594,1.25418113,605.94,604.27,0.57801267]
[1745467283794,1.25418113,605.94,604.28,0.57801267]
[1745467284095,1.25418113,605.94,604.29,0.57801267]
[1745467284391,0.28771625,605.93,604.3,0.57801267]
[1745467284594,0.28771625,605.93,604.31,0.57801267]
[1745467284789,0.28771625,605.93,604.32,0.57801267]
[1745467284995,1.25418113,605.92,603.97,1.691]
[1745467285195,1.25418113,605.92,603.98,0.88163233]
[1745467285391,1.25418113,605.92,603.99,0.88163233]
[1745467285594,1.25418113,605.92,604.0,0.88163233]
[1745467285797,1.25418113,605.92,604.01,0.88163233]
[1745467286095,1.25418113,605.92,604.02,0.88154155]
[1745467286296,1.25418113,605.92,604.03,0.88154155]
[1745467286496,1.25418113,605.92,604.04,0.57769622]
[1745467286691,1.25418113,605.92,604.05,0.88154155]
[1745467286895,1.25418113,605.92,604.06,0.88154155]
[1745467287195,2.13384984,606.58,603.97,1.691]
[1745467287196,1.25418113,605.82,604.07,0.88154155]
[1745467287396,1.25418113,605.82,603.97,1.691]
[1745467287397,1.25418113,605.82,604.08,0.88154155]
[1745467287593,1.25418113,605.82,604.09,0.88154155]
[1745467287796,1.25418113,605.82,604.1,0.88154155]
[1745467287995,1.25418113,605.82,604.11,0.88154155]
[1745467288195,1.25418113,605.82,604.12,0.88154155]
[1745467288393,1.25418113,605.82,604.13,0.57769622]
[1745467288593,1.25418113,605.82,604.14,0.57769622]
[1745467288796,1.25418113,605.82,604.15,0.57769622]
[1745467288996,1.25418113,605.82,604.16,0.57769622]
[1745467289292,1.25418113,605.82,604.17,0.57769622]
[1745467289500,1.25418113,605.89,604.1,1.051]
[1745467289694,1.25418113,605.89,604.11,0.57738647]
[1745467289894,1.25418113,605.89,604.12,0.57738647]
[1745467290198,1.25418113,605.89,604.13,0.57738647]
[1745467290396,1.25418113,605.89,604.14,0.57738647]
[1745467290599,1.25418113,605.89,604.15,0.88125862]
[1745467290800,1.25418113,605.89,604.16,0.57738647]
[1745467291000,1.25418113,605.89,604.17,0.57738647]
[1745467291298,1.25418113,605.89,604.18,0.57738647]
[1745467291503,1.25418113,605.89,604.19,0.57738647]
[1745467291699,0.28774004,605.91,604.2,0.57738647]
[1745467291900,0.28774004,605.91,604.21,0.57738647]
[1745467292100,0.28774004,605.91,604.22,0.57738647]
[1745467292295,1.25418113,606.02,604.23,0.57738647]
[1745467292495,1.25418113,606.02,604.24,0.57738647]
[1745467292698,1.25418113,606.02,604.25,0.57738647]
[1745467292999,1.25418113,606.02,604.26,0.57738647]
[1745467293199,1.25418113,606.02,604.27,0.57738647]
[1745467293401,1.25418113,606.02,604.28,0.57738647]
[1745467293601,0.28770674,606.01,604.29,0.57738647]
[1745467293798,0.28770674,606.01,604.3,0.57738647]
[1745467294098,0.28770674,606.01,604.31,0.57738647]
[1745467294298,0.28770674,606.01,604.32,0.57738647]
[1745467294503,0.28770674,606.01,604.33,0.57738647]
[1745467294803,0.28770674,606.01,604.34,0.57738647]
[1745467295106,0.28770674,606.01,604.35,0.57738647]
[1745467295299,1.25418113,606.06,604.1,1.051]
[1745467295598,1.25418113,606.06,604.11,0.57708083]
[1745467295802,1.25418113,606.06,604.12,0.57708083]
[1745467295999,1.25418113,606.06,604.13,0.57708083]
[1745467296205,3.38803097,606.19,604.14,0.57705882]
[1745467296504,0.2877222,606.05,604.15,0.57703697]
[1745467296700,0.2877222,606.05,604.16,0.57703697]
[1745467297005,1.25418113,606.19,604.17,0.57703697]
[1745467297207,1.25418113,606.19,604.18,0.57703697]
[1745467297500,1.25418113,606.19,604.19,0.57703697]
[1745467297700,0.28770079,606.18,604.2,0.57703697]
[1745467298006,0.28770079,606.18,604.21,0.57703697]
[1745467298300,1.25418113,606.19,604.22,0.57703697]
[1745467298504,1.25418113,606.19,604.23,0.57703697]
[1745467298800,1.25418113,606.19,604.24,0.57699202]
[1745467299004,1.25418113,606.36,604.25,0.57699202]
[1745467299205,1.25418113,606.36,604.26,0.57699202]
[1745467299504,0.28767225,606.35,604.27,0.57699202]
[1745467299706,0.28767225,606.35,604.28,0.57699202]
[1745467299905,0.28767225,606.35,604.29,0.57699202]
[1745467300205,0.28767225,606.35,604.1,1.051]
[1745467300502,0.28767225,606.35,604.11,0.57690866]
[1745467300705,0.28767225,606.35,604.12,0.57690866]
[1745467301005,0.28767225,606.35,604.13,0.57690866]
[1745467301206,1.25418113,606.36,604.14,0.57690866]
[1745467301406,1.25418113,606.36,604.15,0.57690866]
[1745467301607,1.25418113,606.23,604.16,0.57690866]
[1745467301802,1.25418113,606.23,604.17,0.57690866]
[1745467302101,1.25418113,606.23,604.18,0.57690866]
[1745467302304,1.25418113,606.23,604.19,0.57690866]
[1745467302507,0.28769722,606.22,604.2,0.57690866]
[1745467302806,0.28769722,606.22,604.21,0.57690866]
[1745467303006,0.28769722,606.22,604.22,0.57690866]
[1745467303209,0.28769722,606.22,604.23,0.57690866]
[1745467303507,0.28769722,606.22,604.24,0.57690866]
[1745467303709,1.25418113,606.2,604.25,0.57690866]
[1745467303908,1.25418113,606.2,604.26,0.57690866]
[1745467304206,1.25418113,606.2,604.27,0.57690866]
[1745467304404,1.25418113,606.2,604.21,1.065]
[1745467304604,1.25418113,606.2,604.22,0.57672469]
[1745467304804,1.25418113,606.2,604.23,0.57672469]
[1745467305003,1.25418113,606.2,604.21,1.065]
[1745467305004,1.25418113,606.2,604.24,0.57672469]
[1745467305208,1.25418113,606.2,604.25,0.57672469]
[1745467305409,0.28769841,606.19,604.26,0.57672469]
[1745467305710,0.28769841,606.19,604.27,0.57672469]
[1745467306005,0.28769841,606.19,604.21,1.065]
[1745467306209,0.28769841,606.19,604.22,0.57670902]
[1745467306410,0.28769841,606.19,604.23,0.57670902]
[1745467306608,0.28769841,606.19,604.24,0.57670902]
[1745467306806,1.25418113,606.07,604.25,0.57670902]
[1745467307006,1.25418113,606.07,604.26,0.57670902]
[1745467307211,1.25418113,606.07,604.27,0.57670902]
[1745467307408,1.25418113,606.07,604.28,0.57670902]
[1745467307611,1.25418113,606.07,604.29,0.57670902]
[1745467307812,1.25418113,606.07,604.21,1.065]
[1745467308013,1.25418113,606.07,604.22,0.57672545]
[1745467308211,1.25418113,606.07,604.23,0.57672545]
[1745467308407,1.25418113,606.07,604.24,0.57672545]
[1745467308611,0.28771506,606.06,604.25,0.57672545]
[1745467308812,0.28771506,606.06,604.26,0.57672545]
[1745467309015,0.28771506,606.06,604.27,0.57672545]
[1745467309313,0.28771506,606.06,604.28,0.57672545]
[1745467309512,1.25418113,605.99,604.29,0.57672545]
[1745467309706,1.25418113,605.99,604.21,1.065]
[1745467309912,1.25418113,605.99,604.22,0.57672645]
[1745467310107,1.25418113,605.99,604.23,0.57672645]
[1745467310408,1.25418113,605.99,604.24,0.57672645]
[1745467310609,1.25418113,605.99,604.25,0.57672645]
[1745467310812,1.25418113,605.99,604.21,1.065]
[1745467311011,1.25418113,605.99,604.22,0.57679738]
[1745467311209,1.25418113,605.99,604.21,1.065]
[1745467311509,0.28774837,605.98,604.21,1.065]
[1745467312116,1.25418113,605.86,604.21,1.065]
[1745467312314,1.25418113,605.86,604.22,1.439]
[1745467314516,0.28776859,605.85,604.22,1.439]
[1745467316220,1.25418113,605.97,604.22,1.439]
[1745467317618,0.28775075,605.96,604.23,1.17]
[1745467318016,0.28775075,605.96,604.24,1.133]
[1745467318419,1.25418113,605.86,604.24,1.133]
[1745467320522,0.28776146,605.85,604.24,1.133]
[1745467320723,0.28776146,605.85,604.25,0.57737662]
[1745467320914,1.25418113,605.84,604.26,0.57736477]
[1745467321119,1.25418113,605.84,604.24,1.133]
[1745467321416,1.25418113,605.84,604.25,0.5773583]
[1745467321718,1.25418113,605.84,604.26,0.5773583]
[1745467321917,1.25418113,605.84,604.27,0.5773583]
[1745467322121,1.25418113,605.84,604.28,0.5773583]
[1745467322324,1.25418113,605.84,604.29,0.5773583]
[1745467322523,1.25418113,605.84,604.24,1.133]
[1745467322821,1.25418113,605.84,604.25,0.57758983]
[1745467323021,1.25418113,605.84,604.26,0.57758983]
[1745467323219,1.25418113,605.84,604.27,0.57758983]
[1745467323423,0.2877329,605.83,604.28,0.57758983]
[1745467323623,0.2877329,605.83,604.29,0.57758983]
[1745467323821,0.2877329,605.83,604.3,0.57758983]
[1745467324021,0.2877329,605.83,604.24,1.133]
[1745467324218,0.2877329,605.83,604.25,0.57779089]
[1745467324520,0.2877329,605.83,604.26,0.57779089]
[1745467324718,0.2877329,605.83,604.27,0.57779089]
[1745467324922,0.2877329,605.83,604.28,0.57779089]
[1745467325217,1.25418113,605.95,604.29,0.57779089]
[1745467325421,1.25418113,605.95,604.3,0.57822945]
[1745467325621,1.25418113,605.95,604.31,0.57822945]
[1745467325822,1.25418113,605.95,604.32,0.57822945]
[1745467326023,1.25418113,605.95,604.33,0.57822945]
[1745467326220,1.25418113,605.95,604.34,0.57822945]
[1745467326424,0.28771149,605.94,604.35,0.57822945]
[1745467326720,0.28771149,605.94,604.36,0.57822945]
[1745467326919,0.28771149,605.94,604.37,0.57822945]
[1745467327125,0.28771149,605.94,604.38,0.57822945]
[1745467327319,0.28771149,605.94,604.39,0.57822945]
[1745467327524,0.28771149,605.94,604.4,0.57842548]
[1745467327723,0.28771149,605.94,604.41,0.57842548]
[1745467327923,0.28771149,605.94,604.24,1.133]
[1745467328121,0.28771149,605.94,604.25,0.57842063]
[1745467328328,1.25418113,606.01,604.26,0.57842063]
[1745467328524,1.25418113,606.01,604.27,0.57842063]
[1745467328721,1.25418113,606.01,604.28,0.57842063]
[1745467328919,1.25418113,606.01,604.29,0.57842063]
[1745467329124,1.25418113,606.01,604.3,0.57842063]
[1745467329321,1.25418113,606.01,604.31,0.57842063]
[1745467329520,1.25418113,606.01,604.32,0.57842063]
[1745467329725,0.28769603,606.0,604.33,0.57842063]
[1745467329922,0.28769603,606.0,604.34,0.57842063]
[1745467330126,0.28769603,606.0,604.35,0.57842063]
[1745467330328,0.28769603,606.0,604.36,0.57842063]
[1745467330522,0.28769603,606.0,604.37,0.57842063]
[1745467330721,0.28769603,606.0,604.38,0.57842063]
[1745467330923,0.28769603,606.0,604.39,0.57842063]
[1745467331127,0.28769603,606.0,604.4,0.57842063]
[1745467331328,1.25418113,606.06,604.41,0.57842063]
[1745467331527,1.25418113,606.06,604.42,0.57842063]
[1745467331725,1.25418113,606.06,604.43,0.57842063]
[1745467331930,1.25418113,606.06,604.44,0.57842063]
[1745467332130,1.25418113,606.06,604.45,0.57842063]
[1745467332327,1.25418113,606.06,604.46,0.57842063]
[1745467332529,0.28767225,606.05,604.47,0.57842063]
[1745467332727,0.28767225,606.05,604.48,0.57842063]
[1745467332926,0.28767225,606.05,604.49,0.57842063]
[1745467333126,0.28767225,606.05,604.5,0.57842063]
[1745467333331,0.28767225,606.05,604.51,0.57842063]
[1745467333528,0.28767225,606.05,604.52,0.57842063]
[1745467333728,0.28767225,606.05,604.42,1.191]
[1745467333928,0.28767225,606.05,604.43,0.57902309]
[1745467334129,1.25418113,606.08,604.44,0.57902309]
[1745467334431,1.25418113,606.08,604.45,0.57902309]
[1745467334628,1.25418113,606.08,604.46,0.57902309]
[1745467334833,1.25418113,606.08,604.47,0.57902309]
[1745467335031,1.25418113,606.18,604.48,0.57902309]
[1745467335230,1.25418113,606.18,604.42,1.191]
[1745467335432,0.2876675,606.07,604.42,1.191]
[1745467335631,1.25418113,606.18,604.42,1.191]
[1745467336436,0.28766155,606.17,604.42,1.191]
[1745467337236,1.25418113,606.18,604.42,1.191]
[1745467337732,0.28766155,606.17,604.42,1.191]
[1745467337937,1.25418113,606.04,604.42,1.191]
[1745467341041,1.25418113,606.13,604.42,1.191]
[1745467341441,0.28770317,606.12,604.42,1.191]
[1745467343241,1.25418113,606.13,604.42,1.191]
[1745467343965,1.25418113,605.9,604.42,1.191]
[1745467344637,0.28774956,605.89,604.42,1.191]
[1745467346238,1.25418113,605.9,604.42,1.191]
[1745467346441,1.25418113,605.89,604.42,1.191]
[1745467347542,0.28775075,605.88,604.42,1.191]
[1745467348741,1.25418113,605.68,604.42,1.191]
[1745467350546,2.13384984,606.0,604.42,2.672]
[1745467350547,0.28776146,605.67,604.42,2.672]
[1745467355348,2.13384984,606.42,604.42,2.672]
[1745467355349,1.25418113,605.81,604.42,2.672]
[1745467356342,1.25418113,605.81,604.42,4.248]
[1745467356548,0.28771744,605.8,604.42,4.248]
[1745467357446,1.25418113,605.77,604.43,0.57900674]
[1745467357647,1.25418113,605.77,604.44,0.57900674]
[1745467357946,1.25418113,605.77,604.45,0.57900674]
[1745467358149,1.25418113,605.77,604.46,0.57900674]
[1745467358350,1.25418113,605.77,604.47,0.57900674]
[1745467358649,1.25418113,605.77,604.48,0.57900674]
[1745467358851,1.25418113,605.77,604.42,4.633]
[1745467359150,1.25418113,605.77,604.43,0.57901806]
[1745467359344,1.25418113,605.77,604.44,0.57901806]
[1745467359549,1.25418113,605.77,604.45,0.57901806]
[1745467359749,1.25418113,605.77,604.46,0.57901806]
[1745467359947,1.25418113,605.77,604.47,0.57901806]
[1745467360153,0.28771744,605.8,604.48,0.57901806]
[1745467360350,0.28771744,605.8,604.42,4.633]
[1745467360650,0.28771744,605.8,604.43,0.57900838]
[1745467360850,0.28771744,605.8,604.44,0.57900838]
[1745467361050,0.28771744,605.8,604.45,0.57900838]
[1745467361251,1.25418113,605.85,604.46,0.57900838]
[1745467361450,1.25418113,605.85,604.47,0.57900838]
[1745467361645,1.25418113,605.85,604.46,1.632]
[1745467361848,1.25418113,605.85,604.47,0.57901079]
[1745467362046,1.25418113,605.85,604.46,1.632]
[1745467362349,1.25418113,605.85,604.47,0.57901223]
[1745467362544,0.28770793,605.84,604.46,1.632]
[1745467362746,0.28770793,605.84,604.47,0.57901286]
[1745467363052,0.28770793,605.84,604.48,0.57900936]
[1745467363277,1.25418113,605.79,604.46,1.632]
[1745467363449,1.25418113,605.79,604.47,0.5790069]
[1745467363751,1.25418113,605.79,604.46,1.632]
[1745467365451,0.28773885,605.78,604.46,1.632]
[1745467367255,1.25418113,606.33,604.46,1.632]
[1745467368456,0.28766512,606.32,604.46,1.632]
[1745467370151,1.25418113,606.31,604.46,1.632]
[1745467370755,0.28768176,606.3,604.46,1.632]
[1745467372758,1.25418113,605.69,604.46,1.632]
[1745467375062,1.25418113,605.66,604.46,1.632]
[1745467376957,0.28779001,605.65,604.46,1.632]
[1745467377359,1.54197114,605.65,604.46,1.632]
[1745467378259,1.54197114,605.65,604.47,1.651]
[1745467379266,1.25418113,605.65,604.47,1.651]
[1745467380066,0.28782096,605.64,604.47,1.651]
[1745467380365,0.28782096,605.64,604.48,1.191]
[1745467382172,1.25418113,606.25,604.48,1.191]
[1745467382472,0.28773885,605.63,604.48,1.191]
[1745467382966,1.25418113,606.25,604.48,1.191]
[1745467383370,1.25418113,605.82,604.48,1.191]
[1745467385767,1.25418113,605.64,604.48,1.191]
[1745467386472,0.28782572,605.63,604.48,1.191]
[1745467388278,1.25418113,605.64,604.48,1.191]
[1745467388775,1.25418113,605.83,604.48,1.191]
[1745467389480,0.2878031,605.82,604.48,1.191]
[1745467391386,1.25418113,605.78,604.48,1.191]
[1745467393988,1.25418113,605.78,604.49,1.438]
[1745467394288,1.25418113,606.05,604.49,1.438]
[1745467395487,0.2877448,606.04,604.49,1.438]
[1745467396287,1.25418113,605.88,604.49,1.438]
[1745467398487,0.28776502,605.87,604.49,1.438]
[1745467399189,1.25418113,605.7,604.49,1.438]
[1745467399787,1.25418113,605.7,604.5,1.344]
[1745467400287,1.25418113,605.7,604.51,1.679]
[1745467401390,0.28775551,605.69,604.51,1.679]
[1745467402793,1.25418113,605.48,604.51,1.679]
[1745467404091,1.25418113,605.48,604.52,1.441]
[1745467405594,1.25418113,605.4,604.52,1.441]
[1745467407993,1.25418113,605.39,604.52,1.441]
[1745467413998,1.54195091,605.59,604.52,1.441]
[1745467415800,1.25418113,605.58,604.52,1.441]
[1745467418802,2.13384984,605.83,604.52,1.441]
[1745467419004,1.25418113,605.99,604.52,1.441]
[1745467419497,0.2876889,605.98,604.52,1.441]
[1745467421303,1.25418113,605.99,604.52,1.441]
[1745467422205,1.25418113,606.15,604.52,1.441]
[1745467422603,0.28768652,605.98,604.52,1.441]
[1745467422803,1.25418113,606.15,604.52,1.441]
[1745467424406,0.2876675,606.14,604.52,1.441]
[1745467424706,0.2876675,606.14,604.52,2.538]
[1745467427012,1.25418113,605.79,604.52,2.538]
[1745467427607,1.25418113,605.79,604.52,4.24]
[1745467428508,0.28771031,605.78,604.52,4.24]
[1745467430315,1.25418113,605.9,604.52,4.24]
[1745467431616,0.28768771,605.89,604.52,4.24]
[1745467433318,1.25418113,605.9,604.52,4.24]
[1745467434622,0.28768771,605.89,604.52,4.24]
[1745467435223,1.25418113,605.82,604.52,4.24]
[1745467437519,0.28768771,605.81,604.52,4.24]
[1745467439323,1.25418113,606.04,604.52,4.24]
[1745467440522,0.2876568,606.03,604.52,4.24]
[1745467442321,1.25418113,606.13,604.52,4.24]
[1745467443527,0.28766036,606.12,604.52,4.24]
[1745467445328,1.25418113,606.13,604.52,4.24]
[1745467445823,1.25418113,606.31,604.52,4.24]
[1745467446530,0.28763896,606.3,604.52,4.24]
[1745467448229,1.25418113,606.18,604.52,4.24]
[1745467448430,1.25418113,606.18,604.52,5.755]
[1745467449532,0.28765442,606.17,604.52,5.755]
[1745467451332,1.25418113,606.23,604.52,5.755]
[1745467452430,2.13384984,606.41,604.52,5.755]
[1745467452431,1.25418113,606.16,604.52,5.755]
[1745467455137,1.25418113,605.52,604.52,5.755]
[1745467456340,1.25418113,605.52,604.53,0.57839952]
[1745467456534,1.25418113,605.52,604.54,0.57839952]
[1745467456735,1.25418113,605.52,604.55,0.57839952]
[1745467456939,1.25418113,605.52,604.56,0.57839952]
[1745467457140,1.25418113,605.52,604.57,0.57839952]
[1745467457340,1.25418113,605.52,604.52,3.217]
[1745467457639,1.25418113,605.52,604.53,0.57850896]
[1745467457833,1.25418113,605.52,604.54,0.57850896]